[Event "*** Titled Tuesday Blitz"]
[Site "Chess.com"]
[Date "2020.05.26"]
[Round "3"]
[White "LiemLe"]
[Black "RobertoJBM"]
[Result "1-0"]
[WhiteElo "2939"]
[BlackElo "2579"]
[TimeControl "180+1"]
[EndTime "10:28:32 PDT"]
[Termination "LiemLe won on time"]

1. Nf3 {[%clk 0:03:00.9]} 1... d5 {[%clk 0:02:58.9]} 2. e3 {[%clk 0:03:00.1]}
2... Nf6 {[%clk 0:02:57.8]} 3. c4 {[%clk 0:03:00.1]} 3... c6 {[%clk 0:02:57.9]}
4. b3 {[%clk 0:03:00]} 4... Bg4 {[%clk 0:02:56.9]} 5. Bb2 {[%clk 0:02:59.5]}
5... Nbd7 {[%clk 0:02:55.4]} 6. Be2 {[%clk 0:02:57.7]} 6... e6 {[%clk
0:02:55.3]} 7. O-O {[%clk 0:02:57.3]} 7... Bd6 {[%clk 0:02:55.4]} 8. d4 {[%clk
0:02:57.3]} 8... O-O {[%clk 0:02:54.3]} 9. h3 {[%clk 0:02:57.1]} 9... Bh5 {[%clk
0:02:53.5]} 10. Ne5 {[%clk 0:02:55.2]} 10... Bxe2 {[%clk 0:02:52.9]} 11. Qxe2
{[%clk 0:02:56.1]} 11... Qe7 {[%clk 0:02:52.5]} 12. Rd1 {[%clk 0:02:50.6]} 12...
Rac8 {[%clk 0:02:43.1]} 13. Nd2 {[%clk 0:02:45.5]} 13... Ba3 {[%clk 0:02:40.9]}
14. Ndf3 {[%clk 0:02:43.4]} 14... Bxb2 {[%clk 0:02:40]} 15. Qxb2 {[%clk
0:02:44.3]} 15... Nxe5 {[%clk 0:02:39.8]} 16. Nxe5 {[%clk 0:02:42.7]} 16... Nd7
{[%clk 0:02:39.6]} 17. Nd3 {[%clk 0:02:42.5]} 17... Rfd8 {[%clk 0:02:36.8]} 18.
Rac1 {[%clk 0:02:41.8]} 18... Qd6 {[%clk 0:02:36.1]} 19. b4 {[%clk 0:02:38.9]}
19... dxc4 {[%clk 0:02:35]} 20. Rxc4 {[%clk 0:02:39.8]} 20... Rc7 {[%clk
0:02:31.9]} 21. Rdc1 {[%clk 0:02:34]} 21... Rdc8 {[%clk 0:02:25.8]} 22. R4c3
{[%clk 0:02:22.8]} 22... h6 {[%clk 0:02:22.5]} 23. Qa3 {[%clk 0:02:12.9]} 23...
a6 {[%clk 0:02:18.9]} 24. Qa5 {[%clk 0:02:12.4]} 24... Qd5 {[%clk 0:02:06.6]}
25. Nf4 {[%clk 0:01:51.4]} 25... Qxa5 {[%clk 0:02:02.3]} 26. bxa5 {[%clk
0:01:52.3]} 26... Nf6 {[%clk 0:01:58.3]} 27. Nd3 {[%clk 0:01:41.4]} 27... Nd7
{[%clk 0:01:39.4]} 28. Rb3 {[%clk 0:01:39.7]} 28... Kf8 {[%clk 0:01:17.7]} 29.
Kf1 {[%clk 0:01:38.6]} 29... Ke7 {[%clk 0:01:15.2]} 30. Rcb1 {[%clk 0:01:30.9]}
30... c5 {[%clk 0:01:15.5]} 31. Rxb7 {[%clk 0:01:22.1]} 31... cxd4 {[%clk
0:01:14.5]} 32. exd4 {[%clk 0:01:23]} 32... Kf6 {[%clk 0:01:08.1]} 33. Ke2
{[%clk 0:01:19.7]} 33... g5 {[%clk 0:00:41.1]} 34. Ke3 {[%clk 0:01:18.4]} 34...
Kg7 {[%clk 0:00:37.1]} 35. Rxc7 {[%clk 0:01:10.7]} 35... Rxc7 {[%clk 0:00:37.2]}
36. Nc5 {[%clk 0:01:11.2]} 36... Nf6 {[%clk 0:00:19.1]} 37. Kd3 {[%clk
0:01:03.1]} 37... Nd5 {[%clk 0:00:18.7]} 38. g3 {[%clk 0:01:03.2]} 38... Rc6
{[%clk 0:00:17.2]} 39. Rb7 {[%clk 0:01:00.8]} 39... Kg6 {[%clk 0:00:16.4]} 40.
a3 {[%clk 0:00:58.7]} 40... f6 {[%clk 0:00:16]} 41. Kc4 {[%clk 0:00:52.2]} 41...
h5 {[%clk 0:00:15.3]} 42. Rb8 {[%clk 0:00:43.6]} 42... h4 {[%clk 0:00:14.4]} 43.
gxh4 {[%clk 0:00:44]} 43... gxh4 {[%clk 0:00:14.5]} 44. Ra8 {[%clk 0:00:42.3]}
44... Nc7 {[%clk 0:00:14.5]} 45. Rc8 {[%clk 0:00:42]} 45... Kf5 {[%clk
0:00:12.7]} 46. Kd3 {[%clk 0:00:36.6]} 46... e5 {[%clk 0:00:12.8]} 47. Nb3
{[%clk 0:00:23.8]} 47... Ke6 {[%clk 0:00:09.9]} 48. a4 {[%clk 0:00:21]} 48...
Kd7 {[%clk 0:00:09.5]} 49. Rh8 {[%clk 0:00:20.8]} 49... Nd5 {[%clk 0:00:09.9]}
50. Nc5+ {[%clk 0:00:20.6]} 50... Ke7 {[%clk 0:00:08.8]} 51. Rh7+ {[%clk
0:00:19]} 51... Ke8 {[%clk 0:00:09]} 52. Rxh4 {[%clk 0:00:18]} 52... Nf4+ {[%clk
0:00:06.8]} 53. Ke4 {[%clk 0:00:16.8]} 53... exd4 {[%clk 0:00:06.9]} 54. Kxd4
{[%clk 0:00:15]} 54... Ne2+ {[%clk 0:00:06]} 55. Kd5 {[%clk 0:00:14.6]} 1-0

[Event "*** Titled Tuesday Blitz"]
[Site "Chess.com"]
[Date "2020.05.26"]
[Round "3"]
[White "DrBergerBerger"]
[Black "Korchmar_Vasiliy"]
[Result "0-1"]
[WhiteElo "2367"]
[BlackElo "2574"]
[TimeControl "180+1"]
[EndTime "10:28:32 PDT"]
[Termination "Korchmar_Vasiliy won on time"]

1. e4 {[%clk 0:03:00.9]} 1... c5 {[%clk 0:03:00]} 2. Nc3 {[%clk 0:02:58.4]} 2...
d6 {[%clk 0:03:00.1]} 3. d4 {[%clk 0:02:58]} 3... cxd4 {[%clk 0:03:01]} 4. Qxd4
{[%clk 0:02:58.4]} 4... Nc6 {[%clk 0:03:01.6]} 5. Qd2 {[%clk 0:02:58.6]} 5... g6
{[%clk 0:03:02.1]} 6. b3 {[%clk 0:02:58.8]} 6... Bh6 {[%clk 0:03:01.9]} 7. f4
{[%clk 0:02:58.7]} 7... Nf6 {[%clk 0:03:02.4]} 8. Bb2 {[%clk 0:02:58.2]} 8...
O-O {[%clk 0:03:03]} 9. O-O-O {[%clk 0:02:56.4]} 9... a5 {[%clk 0:03:03.6]} 10.
a4 {[%clk 0:02:43.9]} 10... Nb4 {[%clk 0:03:01.4]} 11. Nge2 {[%clk 0:02:29.8]}
11... Qb6 {[%clk 0:02:41.9]} 12. h3 {[%clk 0:02:23.9]} 12... Be6 {[%clk
0:01:55.7]} 13. g4 {[%clk 0:01:33.6]} 13... Bg7 {[%clk 0:01:31.6]} 14. Nd4
{[%clk 0:01:27.4]} 14... Rac8 {[%clk 0:01:25.6]} 15. Kb1 {[%clk 0:01:07.6]}
15... Rxc3 {[%clk 0:01:13.9]} 16. Qxc3 {[%clk 0:01:07]} 16... Nxe4 {[%clk
0:01:14.2]} 17. Qe3 {[%clk 0:00:58.4]} 17... Bd5 {[%clk 0:00:54]} 18. Bg2 {[%clk
0:00:45.6]} 18... Nc3+ {[%clk 0:00:48.8]} 19. Qxc3 {[%clk 0:00:36]} 19... Bxg2
{[%clk 0:00:49.7]} 20. Rh2 {[%clk 0:00:35]} 20... Be4 {[%clk 0:00:49.2]} 21. Re2
{[%clk 0:00:21.8]} 21... d5 {[%clk 0:00:31.8]} 22. f5 {[%clk 0:00:18.5]} 22...
Bf6 {[%clk 0:00:26.9]} 23. g5 {[%clk 0:00:16.1]} 23... Bxg5 {[%clk 0:00:18.7]}
24. fxg6 {[%clk 0:00:15.5]} 24... hxg6 {[%clk 0:00:18.6]} 25. Nf5 {[%clk
0:00:12.6]} 25... Bf6 {[%clk 0:00:15.7]} 26. Nxe7+ {[%clk 0:00:12.6]} 26... Kg7
{[%clk 0:00:16.1]} 27. Qxf6+ {[%clk 0:00:11.6]} 27... Qxf6 {[%clk 0:00:17]} 28.
Bxf6+ {[%clk 0:00:09.5]} 28... Kxf6 {[%clk 0:00:17.9]} 29. Rxe4 {[%clk
0:00:06.1]} 29... dxe4 {[%clk 0:00:17]} 30. Nd5+ {[%clk 0:00:07]} 30... Nxd5
{[%clk 0:00:16.2]} 31. Rxd5 {[%clk 0:00:07.9]} 31... Re8 {[%clk 0:00:12.2]} 32.
Kc1 {[%clk 0:00:05.8]} 32... Re5 {[%clk 0:00:12.1]} 33. Rd7 {[%clk 0:00:05.7]}
33... b6 {[%clk 0:00:09.9]} 34. Kd2 {[%clk 0:00:05.7]} 34... Ke6 {[%clk
0:00:08.4]} 35. Rb7 {[%clk 0:00:05.2]} 35... f5 {[%clk 0:00:08.3]} 36. Rxb6+
{[%clk 0:00:05.4]} 36... Kf7 {[%clk 0:00:08.7]} 37. Rb7+ {[%clk 0:00:04.1]}
37... Kf6 {[%clk 0:00:08.3]} 38. h4 {[%clk 0:00:04.7]} 38... f4 {[%clk 0:00:08]}
39. c4 {[%clk 0:00:03.4]} 39... Rh5 {[%clk 0:00:06.4]} 40. Rb6+ {[%clk
0:00:02.2]} 40... Kf7 {[%clk 0:00:06.5]} 41. Rb7+ {[%clk 0:00:02.1]} 41... Kf6
{[%clk 0:00:06.8]} 42. Rb6+ {[%clk 0:00:02.2]} 42... Kg7 {[%clk 0:00:07.4]} 43.
Re6 {[%clk 0:00:01.8]} 43... e3+ {[%clk 0:00:06.5]} 44. Ke2 {[%clk 0:00:02.5]}
44... Rxh4 {[%clk 0:00:07.2]} 45. c5 {[%clk 0:00:02.9]} 45... g5 {[%clk
0:00:06.1]} 46. c6 {[%clk 0:00:02.5]} 46... Rh2+ {[%clk 0:00:06.5]} 47. Kf3
{[%clk 0:00:02.3]} 47... Rc2 {[%clk 0:00:07.4]} 48. Kg4 {[%clk 0:00:01.5]} 48...
e2 {[%clk 0:00:07.8]} 49. Kxg5 {[%clk 0:00:01.3]} 49... f3 {[%clk 0:00:06.3]}
0-1

[Event "*** Titled Tuesday Blitz"]
[Site "Chess.com"]
[Date "2020.05.26"]
[Round "3"]
[White "Azoulas1"]
[Black "eightbyeightchess"]
[Result "1-0"]
[WhiteElo "1990"]
[BlackElo "2447"]
[TimeControl "180+1"]
[EndTime "10:28:32 PDT"]
[Termination "Azoulas1 won on time"]

1. e4 {[%clk 0:03:00.9]} 1... e6 {[%clk 0:02:58.3]} 2. d4 {[%clk 0:02:59.4]}
2... d5 {[%clk 0:02:58.3]} 3. Nc3 {[%clk 0:02:58.5]} 3... Nf6 {[%clk 0:02:57.7]}
4. e5 {[%clk 0:02:57.2]} 4... Nfd7 {[%clk 0:02:57.9]} 5. f4 {[%clk 0:02:57.1]}
5... c5 {[%clk 0:02:58.1]} 6. Nf3 {[%clk 0:02:55.5]} 6... Nc6 {[%clk 0:02:57.7]}
7. Be3 {[%clk 0:02:55]} 7... cxd4 {[%clk 0:02:57.7]} 8. Nxd4 {[%clk 0:02:54.3]}
8... Bc5 {[%clk 0:02:57.4]} 9. Qd2 {[%clk 0:02:53.9]} 9... a6 {[%clk 0:02:56.5]}
10. Be2 {[%clk 0:02:49.5]} 10... Bxd4 {[%clk 0:02:54.7]} 11. Bxd4 {[%clk
0:02:48.3]} 11... b5 {[%clk 0:02:55.6]} 12. O-O {[%clk 0:02:43.1]} 12... O-O
{[%clk 0:02:37.3]} 13. Nd1 {[%clk 0:02:37.4]} 13... Nxd4 {[%clk 0:02:35.7]} 14.
Qxd4 {[%clk 0:02:36.6]} 14... Qc7 {[%clk 0:02:36.3]} 15. Ne3 {[%clk 0:02:34.2]}
15... f6 {[%clk 0:02:34.8]} 16. Ng4 {[%clk 0:02:20]} 16... Qxc2 {[%clk
0:02:21.2]} 17. Bd3 {[%clk 0:02:17.5]} 17... Qc5 {[%clk 0:02:20.2]} 18. Qxc5
{[%clk 0:02:10.8]} 18... Nxc5 {[%clk 0:02:21.1]} 19. Be2 {[%clk 0:02:05]} 19...
fxe5 {[%clk 0:02:05.6]} 20. Nxe5 {[%clk 0:02:02.6]} 20... Bb7 {[%clk 0:02:03.9]}
21. Rac1 {[%clk 0:01:59.9]} 21... Rac8 {[%clk 0:02:01.5]} 22. Bg4 {[%clk
0:01:47.2]} 22... Rfe8 {[%clk 0:01:29.7]} 23. Rc3 {[%clk 0:01:23.8]} 23... Na4
{[%clk 0:01:18.1]} 24. Rxc8 {[%clk 0:01:17.9]} 24... Bxc8 {[%clk 0:01:19]} 25.
Rc1 {[%clk 0:01:15.9]} 25... Kf8 {[%clk 0:01:00.3]} 26. b3 {[%clk 0:01:13.2]}
26... Nb6 {[%clk 0:00:45.6]} 27. Rc6 {[%clk 0:01:10]} 27... Nd7 {[%clk 0:00:40]}
28. Rxe6 {[%clk 0:01:04.5]} 28... Nxe5 {[%clk 0:00:18.1]} 29. Rxe8+ {[%clk
0:01:03.2]} 29... Kxe8 {[%clk 0:00:19]} 30. Bxc8 {[%clk 0:01:02.8]} 30... Nc6
{[%clk 0:00:14.9]} 31. Bxa6 {[%clk 0:01:00.1]} 31... Nd4 {[%clk 0:00:15]} 32.
Kf2 {[%clk 0:00:55.2]} 32... b4 {[%clk 0:00:15.2]} 33. Bd3 {[%clk 0:00:51.9]}
33... g6 {[%clk 0:00:14.7]} 34. Ke3 {[%clk 0:00:51.3]} 34... Ne6 {[%clk
0:00:14.8]} 35. Bb5+ {[%clk 0:00:47.7]} 35... Ke7 {[%clk 0:00:14.8]} 36. Be2
{[%clk 0:00:44.5]} 36... Kd6 {[%clk 0:00:14.8]} 37. g3 {[%clk 0:00:39.5]} 37...
Kc5 {[%clk 0:00:14.5]} 38. Bf3 {[%clk 0:00:36.8]} 38... Nd4 {[%clk 0:00:13.6]}
39. Bd1 {[%clk 0:00:35]} 39... Nf5+ {[%clk 0:00:13.5]} 40. Kd3 {[%clk
0:00:34.3]} 40... Nd6 {[%clk 0:00:13.2]} 41. Bg4 {[%clk 0:00:29.2]} 41... Nb5
{[%clk 0:00:12.7]} 42. Kc2 {[%clk 0:00:20.7]} 42... Nd4+ {[%clk 0:00:11.5]} 43.
Kd3 {[%clk 0:00:19.9]} 43... Nb5 {[%clk 0:00:11.8]} 44. Kc2 {[%clk 0:00:19.7]}
44... Kd4 {[%clk 0:00:11.9]} 45. Be2 {[%clk 0:00:17.2]} 45... Nc3 {[%clk
0:00:11.7]} 46. Bg4 {[%clk 0:00:13.5]} 46... Nxa2 {[%clk 0:00:11.4]} 47. f5
{[%clk 0:00:13.3]} 47... gxf5 {[%clk 0:00:09.8]} 48. Bxf5 {[%clk 0:00:12.4]}
48... h6 {[%clk 0:00:10.1]} 49. h4 {[%clk 0:00:11.3]} 49... Nc3 {[%clk
0:00:09.8]} 50. g4 {[%clk 0:00:10.6]} 50... Nb5 {[%clk 0:00:05.4]} 51. g5 {[%clk
0:00:09.4]} 51... Ke5 {[%clk 0:00:04.8]} 52. gxh6 {[%clk 0:00:08.3]} 52... Nd4+
{[%clk 0:00:03.3]} 53. Kd3 {[%clk 0:00:06.4]} 1-0

[Event "*** Titled Tuesday Blitz"]
[Site "Chess.com"]
[Date "2020.05.26"]
[Round "3"]
[White "MYMChessAcademy"]
[Black "H3nriqueTV"]
[Result "1-0"]
[WhiteElo "2427"]
[BlackElo "2196"]
[TimeControl "180+1"]
[EndTime "10:28:32 PDT"]
[Termination "MYMChessAcademy won by resignation"]

1. e4 {[%clk 0:03:00.9]} 1... c6 {[%clk 0:02:53]} 2. d4 {[%clk 0:03:00.2]} 2...
d5 {[%clk 0:02:52.5]} 3. e5 {[%clk 0:03:00.7]} 3... Bf5 {[%clk 0:02:51]} 4. h4
{[%clk 0:03:01.2]} 4... h6 {[%clk 0:02:50.1]} 5. g4 {[%clk 0:03:00.1]} 5... Bg6
{[%clk 0:02:47.1]} 6. h5 {[%clk 0:02:58.7]} 6... Bh7 {[%clk 0:02:47.4]} 7. e6
{[%clk 0:02:58.9]} 7... Nf6 {[%clk 0:02:45.8]} 8. Bd3 {[%clk 0:02:55.5]} 8...
Qd6 {[%clk 0:02:44]} 9. exf7+ {[%clk 0:02:50.8]} 9... Kxf7 {[%clk 0:02:44.1]}
10. Bxh7 {[%clk 0:02:46.9]} 10... Rxh7 {[%clk 0:02:43.3]} 11. Nc3 {[%clk
0:02:41.4]} 11... Nbd7 {[%clk 0:02:42.9]} 12. Be3 {[%clk 0:02:32.8]} 12... e5
{[%clk 0:02:40.5]} 13. Qf3 {[%clk 0:02:17.7]} 13... exd4 {[%clk 0:02:30.7]} 14.
Bxd4 {[%clk 0:02:18.6]} 14... Ne5 {[%clk 0:02:31.1]} 15. Qf5 {[%clk 0:02:04.4]}
15... Re8 {[%clk 0:02:03.4]} 16. O-O-O {[%clk 0:02:03.4]} 16... Qe6 {[%clk
0:02:03.6]} 17. Qxe5 {[%clk 0:01:22.3]} 17... Qxe5 {[%clk 0:01:54.5]} 18. Bxe5
{[%clk 0:01:23.2]} 18... Rxe5 {[%clk 0:01:55]} 19. Nf3 {[%clk 0:01:23.8]} 19...
Re8 {[%clk 0:01:51.5]} 20. g5 {[%clk 0:01:23.8]} 20... hxg5 {[%clk 0:01:40.9]}
21. Nxg5+ {[%clk 0:01:24.7]} 21... Kg8 {[%clk 0:01:40.3]} 22. Nxh7 {[%clk
0:01:25.6]} 22... Kxh7 {[%clk 0:01:40.5]} 23. Rde1 {[%clk 0:01:23.7]} 23... Rd8
{[%clk 0:01:40.7]} 24. Re6 {[%clk 0:01:17.7]} 24... Bb4 {[%clk 0:01:39.9]} 25.
Ne2 {[%clk 0:01:17.3]} 25... Ne4 {[%clk 0:01:39.7]} 26. h6 {[%clk 0:01:06.2]}
26... Bd2+ {[%clk 0:01:38.4]} 27. Kb1 {[%clk 0:01:05]} 27... Bxh6 {[%clk
0:01:38.9]} 28. Ng3 {[%clk 0:00:41]} 28... Rf8 {[%clk 0:01:38.2]} 29. Nh5 {[%clk
0:00:27.1]} 29... Nxf2 {[%clk 0:01:30.4]} 30. Rf1 {[%clk 0:00:25.7]} 30... Rf5
{[%clk 0:01:23.7]} 31. Ng3 {[%clk 0:00:19.9]} 31... Rf3 {[%clk 0:01:12.8]} 32.
Nh1 {[%clk 0:00:16.2]} 32... Ne4 {[%clk 0:01:02.3]} 33. Rxf3 {[%clk 0:00:12.2]}
33... Nd2+ {[%clk 0:01:02.7]} 34. Ka1 {[%clk 0:00:10.8]} 34... Nxf3 {[%clk
0:01:03.6]} 35. Re7 {[%clk 0:00:10.7]} 35... Nd4 {[%clk 0:01:00.8]} 36. c3
{[%clk 0:00:06.2]} 36... Nb5 {[%clk 0:00:56.5]} 37. Rxb7 {[%clk 0:00:05.6]}
37... a5 {[%clk 0:00:56.8]} 38. a4 {[%clk 0:00:05.7]} 38... Nd6 {[%clk
0:00:55.5]} 39. Ra7 {[%clk 0:00:05.7]} 39... Nc4 {[%clk 0:00:55.2]} 40. b3
{[%clk 0:00:05.6]} 40... Nd2 {[%clk 0:00:54.2]} 41. Ka2 {[%clk 0:00:06]} 41...
Ne4 {[%clk 0:00:53]} 42. c4 {[%clk 0:00:03.6]} 42... dxc4 {[%clk 0:00:50.4]} 43.
bxc4 {[%clk 0:00:04.5]} 43... Bd2 {[%clk 0:00:50.7]} 44. Ra6 {[%clk 0:00:03.9]}
44... c5 {[%clk 0:00:49.8]} 45. Re6 {[%clk 0:00:04.1]} 45... Nf6 {[%clk
0:00:44.9]} 46. Nf2 {[%clk 0:00:03]} 46... Kg6 {[%clk 0:00:43.7]} 47. Nd3 {[%clk
0:00:02.9]} 47... Kf7 {[%clk 0:00:36.9]} 48. Rc6 {[%clk 0:00:03.3]} 48... Ne4
{[%clk 0:00:36.7]} 49. Nxc5 {[%clk 0:00:03.2]} 49... Nc3+ {[%clk 0:00:35.9]} 50.
Kb3 {[%clk 0:00:03]} 50... Ne2 {[%clk 0:00:31.1]} 51. Kb2 {[%clk 0:00:01.8]}
51... Bb4 {[%clk 0:00:29.9]} 52. Rc7+ {[%clk 0:00:01.8]} 52... Kf6 {[%clk
0:00:27.9]} 53. Nb7 {[%clk 0:00:02.7]} 53... g5 {[%clk 0:00:27.9]} 54. c5 {[%clk
0:00:02.8]} 54... g4 {[%clk 0:00:27.9]} 55. c6 {[%clk 0:00:02.7]} 55... g3
{[%clk 0:00:28.2]} 56. Rc8 {[%clk 0:00:03]} 56... g2 {[%clk 0:00:27.8]} 57. Rg8
{[%clk 0:00:03.6]} 57... g1=Q {[%clk 0:00:19.9]} 58. Rxg1 {[%clk 0:00:03]} 58...
Nxg1 {[%clk 0:00:20.8]} 59. c7 {[%clk 0:00:03.6]} 1-0

[Event "*** Titled Tuesday Blitz"]
[Site "Chess.com"]
[Date "2020.05.26"]
[Round "3"]
[White "suyu28"]
[Black "TigrVShlyape"]
[Result "0-1"]
[WhiteElo "2621"]
[BlackElo "2851"]
[TimeControl "180+1"]
[EndTime "10:28:33 PDT"]
[Termination "TigrVShlyape won by resignation"]

1. d4 {[%clk 0:02:58.5]} 1... d5 {[%clk 0:02:49.5]} 2. Bf4 {[%clk 0:02:58.1]}
2... c5 {[%clk 0:02:42.6]} 3. e3 {[%clk 0:02:56.2]} 3... cxd4 {[%clk 0:02:41.9]}
4. exd4 {[%clk 0:02:47.3]} 4... Nc6 {[%clk 0:02:41.4]} 5. c3 {[%clk 0:02:46.6]}
5... Nf6 {[%clk 0:02:40.1]} 6. Bd3 {[%clk 0:02:46.4]} 6... Bg4 {[%clk 0:02:39]}
7. f3 {[%clk 0:02:45.6]} 7... Bh5 {[%clk 0:02:36.6]} 8. Ne2 {[%clk 0:02:45.3]}
8... e6 {[%clk 0:02:35.7]} 9. O-O {[%clk 0:02:44.8]} 9... Bg6 {[%clk 0:02:34.7]}
10. Bg3 {[%clk 0:02:39.9]} 10... Qb6 {[%clk 0:02:26.2]} 11. Bxg6 {[%clk
0:02:31.6]} 11... hxg6 {[%clk 0:02:25.2]} 12. Qd2 {[%clk 0:02:26.5]} 12... Be7
{[%clk 0:02:16.6]} 13. Nc1 {[%clk 0:02:20.8]} 13... e5 {[%clk 0:02:11.4]} 14.
Nb3 {[%clk 0:02:06.1]} 14... e4 {[%clk 0:02:08.1]} 15. Qf2 {[%clk 0:01:35.1]}
15... exf3 {[%clk 0:01:26.4]} 16. gxf3 {[%clk 0:01:30.6]} 16... O-O {[%clk
0:01:24.6]} 17. Nc5 {[%clk 0:01:30.1]} 17... Rfe8 {[%clk 0:01:21.2]} 18. Na3
{[%clk 0:01:21.2]} 18... Bf8 {[%clk 0:01:15.4]} 19. b4 {[%clk 0:01:20.6]} 19...
Ne7 {[%clk 0:01:12.9]} 20. Nc2 {[%clk 0:01:14.9]} 20... Nf5 {[%clk 0:01:12]} 21.
Rfe1 {[%clk 0:01:03.1]} 21... Qc6 {[%clk 0:01:06.6]} 22. Rxe8 {[%clk 0:00:42.3]}
22... Rxe8 {[%clk 0:01:00.5]} 23. Re1 {[%clk 0:00:38.3]} 23... b6 {[%clk
0:00:56.5]} 24. Rxe8 {[%clk 0:00:37.5]} 24... Nxe8 {[%clk 0:00:56.2]} 25. Qe2
{[%clk 0:00:29.1]} 25... bxc5 {[%clk 0:00:54.8]} 26. dxc5 {[%clk 0:00:27.1]}
26... Nxg3 {[%clk 0:00:36.6]} 27. hxg3 {[%clk 0:00:25.9]} 27... Bxc5+ {[%clk
0:00:34.9]} 28. bxc5 {[%clk 0:00:25.1]} 28... Qxc5+ {[%clk 0:00:35.3]} 29. Kg2
{[%clk 0:00:19.6]} 29... Nc7 {[%clk 0:00:33.1]} 30. Qd3 {[%clk 0:00:19.1]} 30...
Nb5 {[%clk 0:00:32.3]} 31. Ne3 {[%clk 0:00:12.9]} 31... Nxc3 {[%clk 0:00:30.7]}
32. Qd2 {[%clk 0:00:13.3]} 32... Qa5 {[%clk 0:00:21.3]} 33. Nd1 {[%clk
0:00:09.7]} 33... Qxa2 {[%clk 0:00:20]} 34. Qxa2 {[%clk 0:00:09.1]} 34... Nxa2
{[%clk 0:00:20.5]} 35. Kf2 {[%clk 0:00:09.8]} 35... Nb4 {[%clk 0:00:20.4]} 36.
Ke3 {[%clk 0:00:10.1]} 36... Nc6 {[%clk 0:00:21]} 37. Kd3 {[%clk 0:00:09.6]}
37... f6 {[%clk 0:00:21.3]} 38. Nc3 {[%clk 0:00:09.4]} 38... Ne7 {[%clk
0:00:20.2]} 39. Kd4 {[%clk 0:00:09.5]} 39... Kf7 {[%clk 0:00:20.4]} 40. Kc5
{[%clk 0:00:09.8]} 40... Ke6 {[%clk 0:00:20.2]} 41. Nb5 {[%clk 0:00:09.7]} 41...
a5 {[%clk 0:00:19.6]} 42. Nd4+ {[%clk 0:00:07.5]} 42... Ke5 {[%clk 0:00:19.6]}
43. g4 {[%clk 0:00:04]} 43... g5 {[%clk 0:00:19.6]} 44. Ne2 {[%clk 0:00:03.3]}
44... a4 {[%clk 0:00:19.6]} 45. Nd4 {[%clk 0:00:03.4]} 45... a3 {[%clk
0:00:19.4]} 46. Nc2 {[%clk 0:00:03.6]} 46... a2 {[%clk 0:00:19.6]} 47. Kb4
{[%clk 0:00:04.1]} 47... Kf4 {[%clk 0:00:19.9]} 48. Kb3 {[%clk 0:00:02.9]} 48...
Kxf3 {[%clk 0:00:20]} 49. Kxa2 {[%clk 0:00:03.8]} 49... Kxg4 {[%clk 0:00:20.4]}
50. Kb3 {[%clk 0:00:04.7]} 50... Kf3 {[%clk 0:00:21]} 51. Kc3 {[%clk 0:00:05.6]}
51... Kf2 {[%clk 0:00:21.5]} 52. Nd4 {[%clk 0:00:06.5]} 52... g4 {[%clk
0:00:21.9]} 53. Kd3 {[%clk 0:00:07.4]} 53... g3 {[%clk 0:00:22.1]} 54. Nf5
{[%clk 0:00:06.2]} 54... Nxf5 {[%clk 0:00:21.7]} 0-1

[Event "*** Titled Tuesday Blitz"]
[Site "Chess.com"]
[Date "2020.05.26"]
[Round "3"]
[White "Fins0905"]
[Black "Playgood28"]
[Result "1-0"]
[WhiteElo "2657"]
[BlackElo "2299"]
[TimeControl "180+1"]
[EndTime "10:28:35 PDT"]
[Termination "Fins0905 won on time"]

1. e4 {[%clk 0:03:00.9]} 1... e5 {[%clk 0:02:59.1]} 2. Nf3 {[%clk 0:03:00.5]}
2... d6 {[%clk 0:02:59.5]} 3. d4 {[%clk 0:02:59.1]} 3... exd4 {[%clk 0:03:00.4]}
4. Nxd4 {[%clk 0:02:59.2]} 4... Nf6 {[%clk 0:03:00]} 5. Nc3 {[%clk 0:02:59]}
5... Be7 {[%clk 0:03:00.1]} 6. Bf4 {[%clk 0:02:59]} 6... O-O {[%clk 0:02:59.1]}
7. Qd2 {[%clk 0:02:58.6]} 7... a6 {[%clk 0:02:59.2]} 8. O-O-O {[%clk 0:02:53.8]}
8... b5 {[%clk 0:02:58.9]} 9. f3 {[%clk 0:02:53.6]} 9... c5 {[%clk 0:02:58.5]}
10. Nf5 {[%clk 0:02:49.7]} 10... Bxf5 {[%clk 0:02:56.6]} 11. exf5 {[%clk
0:02:50.6]} 11... Nc6 {[%clk 0:02:55.8]} 12. Kb1 {[%clk 0:02:40.7]} 12... Nd4
{[%clk 0:02:29.8]} 13. Bd3 {[%clk 0:02:31.3]} 13... Rb8 {[%clk 0:02:17.6]} 14.
g4 {[%clk 0:02:12.3]} 14... b4 {[%clk 0:02:16.6]} 15. Ne4 {[%clk 0:02:09.4]}
15... Nxe4 {[%clk 0:02:14.4]} 16. Bxe4 {[%clk 0:02:03.8]} 16... d5 {[%clk
0:02:00]} 17. Bxb8 {[%clk 0:02:01.8]} 17... dxe4 {[%clk 0:01:52.2]} 18. Be5
{[%clk 0:01:46.4]} 18... exf3 {[%clk 0:01:34.8]} 19. Qf4 {[%clk 0:01:28.5]}
19... Qb6 {[%clk 0:01:25]} 20. Bxd4 {[%clk 0:01:23.7]} 20... cxd4 {[%clk
0:01:24.6]} 21. Qxf3 {[%clk 0:01:22.4]} 21... Bf6 {[%clk 0:01:09.5]} 22. h4
{[%clk 0:01:20.1]} 22... a5 {[%clk 0:01:06.4]} 23. g5 {[%clk 0:01:19.9]} 23...
Be5 {[%clk 0:01:06.3]} 24. Qd5 {[%clk 0:01:17]} 24... Qc7 {[%clk 0:01:00.8]} 25.
Rhe1 {[%clk 0:01:08.9]} 25... Bg3 {[%clk 0:00:54.9]} 26. Re4 {[%clk 0:00:59.8]}
26... Bf2 {[%clk 0:00:51.5]} 27. f6 {[%clk 0:00:51.2]} 27... Rc8 {[%clk
0:00:45.1]} 28. Re2 {[%clk 0:00:41.1]} 28... Be3 {[%clk 0:00:44.2]} 29. fxg7
{[%clk 0:00:37]} 29... Kxg7 {[%clk 0:00:43.2]} 30. Qf5 {[%clk 0:00:35.3]} 30...
Qc4 {[%clk 0:00:32.8]} 31. Rg2 {[%clk 0:00:20.5]} 31... a4 {[%clk 0:00:31.2]}
32. Qd3 {[%clk 0:00:15.4]} 32... Qc6 {[%clk 0:00:27.4]} 33. Re2 {[%clk
0:00:13.4]} 33... a3 {[%clk 0:00:25.7]} 34. h5 {[%clk 0:00:12.8]} 34... axb2
{[%clk 0:00:22.7]} 35. h6+ {[%clk 0:00:13.1]} 35... Kg8 {[%clk 0:00:20.4]} 36.
Rf1 {[%clk 0:00:12.8]} 36... Qe6 {[%clk 0:00:19]} 37. Qb3 {[%clk 0:00:09.8]}
37... Qxb3 {[%clk 0:00:16.4]} 38. axb3 {[%clk 0:00:10.7]} 38... Rc5 {[%clk
0:00:15.9]} 39. Kxb2 {[%clk 0:00:08.8]} 39... Rxg5 {[%clk 0:00:15.2]} 40. Ra1
{[%clk 0:00:08.9]} 40... f6 {[%clk 0:00:13.5]} 41. Ra7 {[%clk 0:00:08.3]} 41...
Rg6 {[%clk 0:00:12]} 42. Rh2 {[%clk 0:00:05.5]} 42... Rxh6 {[%clk 0:00:08.9]}
43. Rxh6 {[%clk 0:00:05.3]} 43... Bxh6 {[%clk 0:00:09]} 44. Rd7 {[%clk 0:00:05]}
44... Bd2 {[%clk 0:00:08.7]} 45. Kb1 {[%clk 0:00:05.1]} 45... Bc3 {[%clk
0:00:08.3]} 46. Kc1 {[%clk 0:00:05]} 46... h5 {[%clk 0:00:08.2]} 47. Kd1 {[%clk
0:00:05.3]} 47... Kf8 {[%clk 0:00:06.6]} 48. Ke2 {[%clk 0:00:05.2]} 48... Ke8
{[%clk 0:00:06.3]} 49. Rh7 {[%clk 0:00:05.4]} 49... Kf8 {[%clk 0:00:05.9]} 50.
Kf3 {[%clk 0:00:05.4]} 50... Kg8 {[%clk 0:00:05.3]} 51. Rxh5 {[%clk 0:00:05.7]}
51... Kg7 {[%clk 0:00:05.2]} 52. Rb5 {[%clk 0:00:05]} 52... Kg6 {[%clk
0:00:05.2]} 53. Kg4 {[%clk 0:00:05.9]} 1-0